bitfinex/quotes_ETHUSD_20241106
["timestamp","ask_amount","ask_price","bid_price","bid_amount"]
[1730926651454,0.01,2686.2,2685.4,0.95943783]
[1730926651455,3.0,2686.0,2685.4,0.95943783]
[1730926651614,3.0,2686.0,2685.3,0.42556172]
[1730926651815,3.0,2686.0,2685.3,0.8328788]
[1730926652110,4.86467741,2685.7,2685.1,0.77124852]
[1730926652337,4.86467741,2685.7,2685.2,0.06175152]
[1730926652536,3.0,2686.0,2685.2,0.89463032]
[1730926652949,3.0,2686.0,2685.3,0.6378918]
[1730926653155,3.0,2686.0,2685.4,0.89458803]
[1730926653640,3.01,2686.0,2685.4,0.42556172]
[1730926653973,3.01,2686.0,2685.1,0.77124852]
[1730926653974,0.799,2685.9,2685.1,0.77124852]
[1730926654126,0.799,2685.9,2685.2,0.63757121]
[1730926654329,0.799,2685.9,2685.2,0.48728405]
[1730926655560,0.799,2685.9,2685.3,0.42556172]
[1730926655763,0.799,2685.9,2685.4,0.06172981]
[1730926655970,0.799,2685.9,2685.4,0.06171196]
[1730926656267,0.799,2685.9,2685.4,0.42556172]
[1730926656471,0.799,2685.9,2685.4,0.4872775]
[1730926656827,0.7682,2686.3,2685.4,0.4872775]
[1730926657553,0.7682,2686.3,2685.4,0.42556172]
[1730926657950,4.86467741,2686.1,2685.3,0.0374]
[1730926658268,0.7682,2686.3,2685.3,0.0374]
[1730926658964,0.7682,2686.3,2685.3,0.46296172]
[1730926659530,4.14409442,2686.2,2685.3,0.46296172]
[1730926659884,4.14409442,2685.8,2685.3,0.0374]
[1730926660169,4.14409442,2686.2,2685.4,0.06170276]
[1730926660638,3.0,2686.1,2685.4,0.06170276]
[1730926661642,0.01,2686.0,2685.4,0.06170276]
[1730926661828,3.0,2686.1,2685.4,0.48726448]
[1730926662177,0.01,2686.5,2685.5,0.79876172]
[1730926662463,4.95919442,2686.6,2685.6,0.06167465]
[1730926662667,4.95919442,2686.6,2685.7,0.3732]
[1730926662868,4.95919442,2686.6,2685.8,0.0616697]
[1730926663434,3.0,2686.5,2685.7,0.3732]
[1730926663675,4.14409442,2686.2,2685.3,0.4106]
[1730926663972,4.14409442,2686.2,2685.4,0.06170313]
[1730926664130,4.14409442,2686.2,2685.5,0.3732]
[1730926664333,4.14409442,2686.2,2685.6,0.06170323]
[1730926664754,4.14409442,2686.2,2685.5,0.3732]
[1730926665244,3.01,2686.1,2685.3,0.4106]
[1730926666877,3.0,2686.1,2685.4,0.06170987]
[1730926667573,3.0,2686.1,2685.5,0.3732]
[1730926668435,4.14409442,2686.2,2685.5,0.3732]
[1730926669268,4.14409442,2686.2,2685.6,0.06169595]
[1730926669470,3.01,2686.1,2685.6,0.06169606]
[1730926669675,3.01,2686.1,2685.3,1.2434788]
[1730926670038,3.0,2686.1,2685.3,1.2434788]
[1730926670568,4.14409442,2686.2,2685.3,1.2434788]
[1730926671178,0.01,2686.3,2685.4,0.06170558]
[1730926671368,3.0,2686.5,2685.5,0.3732]
[1730926671535,0.01,2686.3,2685.5,0.3732]
[1730926671735,3.01,2686.5,2685.5,0.3732]
[1730926671933,3.01,2686.5,2685.6,0.0616788]
[1730926672374,3.01,2686.5,2685.3,0.4106]
[1730926672574,3.01,2686.5,2685.5,0.3732]
[1730926672874,3.0,2686.5,2685.7,0.3732]
[1730926673242,3.0,2686.5,2685.7,0.81720974]
[1730926673562,3.01,2686.5,2685.7,0.81720974]
[1730926673763,3.0,2686.5,2685.7,0.81720974]
[1730926673941,3.01,2686.5,2685.7,0.81720974]
[1730926674135,4.14409442,2686.2,2685.8,0.3732]
[1730926674362,3.01,2686.5,2685.9,0.06169637]
[1730926675163,3.01,2686.5,2685.4,0.3732]
[1730926675480,3.01,2686.5,2685.6,0.3732]
[1730926675687,1.62412893,2686.5,2685.9,0.77124852]
[1730926675972,1.63412893,2686.5,2686.0,1.40965523]
[1730926676170,1.63412893,2686.5,2686.1,0.06168314]
[1730926676578,1.63412893,2686.5,2685.8,1.14444852]
[1730926676781,1.63412893,2686.5,2685.9,0.63877013]
[1730926677245,1.63412893,2686.5,2686.0,0.77124852]
[1730926677952,1.63412893,2686.5,2686.0,0.63877013]
[1730926678150,1.63412893,2686.5,2685.9,0.77124852]
[1730926678537,0.01,2686.5,2685.9,0.77124852]
[1730926678741,0.01,2686.5,2685.9,1.41038143]
[1730926679063,0.01,2686.5,2686.0,0.67653291]
[1730926679240,0.01,2686.5,2686.0,0.0374]
[1730926679435,0.01,2686.5,2686.1,0.63965578]
[1730926679678,3.462962,2686.8,2686.0,0.0374]
[1730926679679,4.90489442,2686.2,2686.0,0.0374]
[1730926679976,4.90489442,2686.2,2686.0,0.09910341]
[1730926680274,4.90489442,2686.2,2686.0,0.0374]
[1730926680442,4.90489442,2686.2,2686.0,0.09910351]
[1730926680645,4.90489442,2686.2,2686.1,0.63998301]
[1730926680879,4.90489442,2686.2,2686.0,0.0374]
[1730926681768,0.01,2686.1,2686.0,0.0374]
[1730926682280,3.01,2686.1,2686.0,0.0374]
[1730926683205,0.01,2685.7,2685.4,0.96037602]
[1730926683356,0.01,2685.5,2685.3,0.77124852]
[1730926683697,0.01,2685.5,2685.1,2.1174404]
[1730926683698,0.7878,2685.4,2685.1,0.77124852]
[1730926683854,0.7878,2685.4,2685.2,1.41181232]
[1730926684053,0.7878,2685.4,2685.3,0.6405638]
[1730926684365,0.7878,2685.4,2685.2,0.77124852]
[1730926684573,0.7878,2685.4,2685.2,1.41181232]
[1730926685010,3.0,2685.2,2684.9,0.77124852]
[1730926685296,3.0,2685.2,2685.0,1.08486554]
[1730926685297,0.01,2685.1,2685.0,1.08486554]
[1730926685475,0.01,2685.1,2685.0,1.85611406]
[1730926685675,0.01,2685.1,2685.0,1.08486554]
[1730926685881,0.01,2685.1,2685.0,0.6408558]
[1730926686398,0.01,2684.9,2684.8,1.73292252]
[1730926686599,7.15409442,2684.9,2684.8,1.4123822]
[1730926686754,7.15409442,2684.9,2684.8,0.64113368]
[1730926687302,7.15409442,2684.9,2684.8,2.3740562]
[1730926687595,7.15409442,2684.9,2684.8,0.64113368]
[1730926687759,7.97869442,2684.9,2684.8,0.64113368]
[1730926687965,3.0,2684.8,2684.7,0.44400974]
[1730926688195,3.0,2684.8,2684.7,1.0852364]
[1730926688993,3.0,2684.8,2684.7,0.64122666]
[1730926689167,0.01,2684.7,2684.6,0.77124852]
[1730926689374,0.01,2684.7,2684.6,0.64112492]
[1730926689675,0.01,2684.7,2684.3,0.44400974]
[1730926689676,0.7738,2684.4,2684.3,1.21525826]
[1730926689873,7.91789442,2684.4,2684.3,0.64096929]
[1730926690208,7.91789442,2684.4,2684.1,0.48668623]
[1730926690209,0.01,2684.2,2684.1,0.48668623]
[1730926690391,0.7738,2685.0,2684.3,0.86882146]
[1730926690559,0.01,2685.4,2684.5,0.77467114]
[1730926690756,0.01,2685.4,2684.4,3.68909227]
[1730926690757,4.14409442,2685.2,2685.1,0.77467114]
[1730926690997,0.01,2685.6,2685.1,1.92102567]
[1730926690998,4.15409442,2685.6,2685.1,1.92102567]
[1730926691195,4.14409442,2685.6,2685.3,0.77434761]
[1730926691509,4.15409442,2685.6,2685.4,0.6405562]
[1730926691716,4.15409442,2685.6,2685.5,0.06176063]
[1730926692006,4.15409442,2685.6,2685.5,0.70231683]
[1730926692496,4.15409442,2685.6,2685.5,0.6405562]
[1730926692706,4.15409442,2685.6,2685.3,0.06176654]
[1730926692892,4.15409442,2685.6,2685.4,0.64044986]
[1730926693083,4.15409442,2685.6,2685.3,0.06176654]
[1730926693475,4.15409442,2685.6,2685.4,0.64056286]
[1730926693785,4.15409442,2685.6,2685.2,0.77434761]
[1730926693786,0.01,2685.4,2685.2,0.77434761]
[1730926693997,0.01,2685.4,2685.2,1.25222749]
[1730926694164,0.01,2685.4,2685.3,0.64056482]
[1730926694496,0.01,2685.2,2685.0,1.73518191]
[1730926694698,4.15409442,2685.2,2685.1,0.64069361]
[1730926695076,4.15409442,2685.2,2684.9,0.77434761]
[1730926695387,4.15409442,2685.2,2685.0,0.64072727]
[1730926695698,2.77750615,2685.2,2685.0,0.47787988]
[1730926696064,5.77750615,2685.2,2685.1,0.06179825]
[1730926696286,5.77750615,2685.2,2685.1,0.53967813]
[1730926696502,3.0,2685.5,2685.1,0.53967813]
[1730926696696,4.14409442,2685.6,2685.2,1.25222749]
[1730926698060,4.14409442,2685.6,2685.3,0.64084613]
[1730926699263,4.14409442,2685.6,2685.2,0.47787988]
[1730926700398,3.0,2685.9,2685.3,0.06176183]
[1730926700699,3.0,2685.9,2685.4,0.47787988]
[1730926702806,0.7818,2686.1,2685.5,0.06173856]
[1730926703003,4.14409442,2686.4,2685.6,1.11874671]
[1730926703187,4.14409442,2686.4,2685.6,0.47787988]
[1730926703594,4.14409442,2686.4,2685.7,0.06170671]
[1730926703770,4.14409442,2686.4,2685.8,0.47787988]
[1730926704184,3.0,2686.3,2685.8,0.47787988]
[1730926704476,4.14409442,2686.1,2685.8,0.47787988]
[1730926705769,4.14409442,2686.1,2685.9,0.06171947]
[1730926706183,4.14409442,2686.1,2685.8,0.47787988]
[1730926706891,3.0,2686.0,2685.3,0.47787988]
[1730926707320,4.14409442,2685.7,2685.3,0.47787988]
[1730926707466,4.14409442,2685.7,2685.4,0.06176142]
[1730926707807,4.14409442,2685.7,2685.4,0.5396413]
[1730926709507,4.14409442,2685.7,2685.5,0.47787988]
[1730926709870,4.14409442,2685.7,2685.2,0.47787988]
[1730926710297,4.14409442,2685.7,2685.3,0.64123012]
[1730926710911,3.0,2686.0,2685.2,0.77513779]
[1730926711119,3.0,2686.0,2685.1,1.8040158]
[1730926711120,3.0,2686.0,2685.4,0.47787988]
[1730926711615,3.0,2686.0,2685.5,0.64128802]
[1730926711787,3.0,2686.0,2685.4,1.25301767]
[1730926712114,3.0,2686.0,2685.5,1.11913405]
[1730926712314,3.0,2686.0,2685.6,1.11913405]
[1730926712542,3.0,2686.0,2685.7,0.06172853]
[1730926712695,3.0,2686.0,2685.4,1.19994951]
[1730926712897,3.0,2686.0,2685.7,0.47787988]
[1730926713193,4.14409442,2686.1,2685.8,0.06172486]
[1730926713517,4.14409442,2686.1,2685.7,0.47787988]
[1730926713712,4.14409442,2686.1,2685.8,0.0617208]
[1730926713914,4.95739442,2686.5,2685.9,0.47787988]
[1730926714116,4.14409442,2686.5,2686.0,0.06169428]
[1730926714316,4.14409442,2686.5,2686.1,0.47787988]
[1730926714509,4.14409442,2686.5,2686.2,0.06168773]
[1730926714702,4.14409442,2686.5,2686.2,0.47787988]
[1730926715894,4.14409442,2686.5,2686.3,0.06167933]
[1730926716420,4.14409442,2686.5,2686.2,0.47787988]
[1730926716608,4.14409442,2686.5,2686.3,0.64093734]
[1730926716805,4.14409442,2686.5,2686.4,0.06167953]
[1730926717018,4.14409442,2686.5,2686.0,0.77513779]
[1730926717416,4.14409442,2686.5,2686.1,0.64098525]
[1730926717690,4.14409442,2686.5,2685.8,2.6397038]
[1730926717894,4.14409442,2686.5,2685.9,1.89400064]
[1730926718199,3.0,2686.8,2686.1,0.77513779]
[1730926718397,3.0,2686.8,2686.2,0.47787988]
[1730926719339,3.0,2686.8,2686.3,1.06566924]
[1730926719540,4.14409442,2686.9,2686.4,0.70251593]
[1730926719696,4.14409442,2686.9,2686.4,1.47765372]
[1730926719909,4.14409442,2686.9,2686.5,0.64085752]
[1730926720415,4.14409442,2686.9,2686.2,0.96187441]
[1730926720416,0.7596,2686.8,2686.2,0.96187441]
[1730926720626,4.14409442,2686.4,2686.0,0.77513779]
[1730926720840,0.7596,2687.2,2685.9,0.77513779]
[1730926721064,3.0,2686.6,2686.1,0.47776444]
[1730926721342,4.14409442,2686.7,2686.2,0.77513779]
[1730926721572,4.14409442,2686.7,2686.3,0.47776444]
[1730926721709,4.14409442,2686.7,2686.3,1.25290223]
[1730926721907,4.14409442,2686.7,2686.4,0.64075902]
[1730926722305,4.14409442,2686.7,2686.3,0.47776444]
[1730926722510,3.0,2686.6,2686.3,0.47776444]
[1730926722743,3.0,2686.6,2685.9,0.77513779]
[1730926722925,3.7619,2686.6,2686.4,0.0375]
[1730926724913,3.0,2686.6,2686.4,0.57695412]
[1730926725111,4.89719442,2687.1,2686.5,0.47776444]
[1730926725323,3.0,2687.0,2686.5,1.00239436]
[1730926727914,4.92159442,2687.5,2686.5,1.00239436]
[1730926728248,4.92159442,2687.5,2686.5,1.39472147]
[1730926729536,3.0,2687.4,2686.5,1.39472147]
[1730926731614,3.0,2687.4,2686.6,0.06162531]
[1730926731954,3.0,2687.4,2686.7,0.52462992]
[1730926733212,4.14409442,2687.1,2686.7,0.52462992]
[1730926733418,3.0,2687.0,2686.7,0.52462992]
[1730926736131,0.8078,2686.9,2686.7,0.52462992]
[1730926736331,0.8078,2686.9,2686.4,0.0375]
[1730926736332,0.90083668,2686.9,2686.4,0.0375]
[1730926736820,1.70532979,2686.9,2686.4,0.0375]
[1730926737023,0.7814,2686.5,2686.4,0.0375]
[1730926737231,0.7814,2686.5,2685.3,0.39232711]
[1730926737232,0.87446047,2686.5,2685.7,0.77496992]
[1730926737520,4.14409442,2686.3,2685.6,0.52462992]
[1730926737831,0.7821,2686.1,2685.6,0.52462992]
[1730926738363,0.7821,2686.1,2684.9,1.29959984]
[1730926738364,0.7821,2685.7,2684.9,1.29959984]
[1730926738570,0.7821,2685.7,2685.2,0.52462992]
[1730926739824,0.7821,2685.7,2685.3,0.06177068]
[1730926740176,0.7522,2686.2,2685.4,1.77736428]
[1730926740369,0.7522,2686.2,2685.4,0.52462992]
[1730926740664,0.0930776,2686.1,2685.4,0.52462992]
[1730926740969,1.92567029,2687.6,2685.4,0.52462992]
[1730926740970,0.7522,2686.6,2685.5,0.83672079]
[1730926741121,0.7522,2687.2,2685.7,0.78496992]
[1730926741487,4.23713434,2687.1,2686.2,0.77496992]
[1730926741761,4.23713434,2687.1,2686.2,0.52379658]
[1730926742136,4.23713434,2687.1,2686.3,0.06168246]
[1730926742350,4.23713434,2687.1,2686.1,0.77496992]
[1730926742351,3.8056,2686.6,2686.1,0.77496992]
[1730926742546,0.09306278,2686.5,2685.9,1.73634182]
[1730926742773,3.0,2686.2,2685.8,0.77496992]
[1730926742937,3.0,2686.2,2685.5,2.02770428]
[1730926742938,3.09306819,2686.2,2685.6,0.77496992]
[1730926743133,3.09306819,2686.2,2685.6,0.52379658]
[1730926743361,3.8056,2686.6,2685.8,0.77496992]
[1730926743673,0.09307631,2686.5,2685.8,0.77496992]
[1730926743961,0.09307631,2686.5,2685.8,1.2987665]
[1730926744467,3.0,2685.8,2685.5,1.73668841]
[1730926744645,0.09308333,2686.0,2685.4,1.4857485]
[1730926744849,0.01,2686.5,2685.6,0.77496992]
[1730926744850,0.7525,2686.5,2685.6,0.77496992]
[1730926745072,0.7525,2686.8,2685.8,0.77496992]
[1730926745384,0.7525,2686.8,2686.1,0.77496992]
[1730926745526,0.7525,2686.8,2686.0,0.77496992]
[1730926745724,4.14409442,2686.7,2686.0,1.28656164]
[1730926745959,0.09305133,2686.6,2686.0,1.81035822]
[1730926746168,4.14409442,2686.7,2686.1,1.0353883]
[1730926746375,3.0,2686.6,2686.2,0.77496992]
[1730926746695,3.0,2686.6,2686.1,1.0353883]
[1730926746696,4.14409442,2686.7,2686.1,1.0353883]
[1730926746974,0.7525,2686.8,2686.3,1.0353883]
[1730926747145,0.7655,2687.1,2686.4,0.06168798]
[1730926747335,4.14409442,2687.5,2686.7,0.77496992]
[1730926747336,0.09303775,2687.4,2686.7,0.77496992]
[1730926747689,0.7655,2687.5,2686.8,0.83661902]
[1730926747833,0.09302263,2688.3,2687.2,0.77496992]
[1730926748039,0.7668,2688.4,2687.8,0.77496992]
[1730926748237,0.09299902,2689.2,2688.3,0.77496992]
[1730926748473,0.7668,2689.5,2688.5,0.77496992]
[1730926748684,4.91089442,2689.5,2688.5,0.77496992]
[1730926748975,4.91089442,2689.5,2688.6,0.77496992]
[1730926748976,0.09296177,2689.4,2688.6,0.77496992]
[1730926749437,3.0,2688.9,2688.2,0.77496992]
[1730926749635,0.09298567,2688.9,2688.3,0.06153012]
[1730926749832,0.7668,2689.0,2688.0,0.57312197]
[1730926750161,3.09297639,2688.9,2687.9,0.77496992]
[1730926750369,3.96469888,2688.9,2687.9,0.77496992]
[1730926750565,3.96469888,2688.9,2687.7,0.77496992]
[1730926750566,3.0,2688.5,2687.7,0.77496992]
[1730926750735,3.0,2688.5,2687.6,1.16245488]
[1730926750736,0.88359898,2688.4,2687.6,0.95728829]
[1730926750932,0.7906,2688.8,2687.6,0.77496992]
[1730926751164,0.7906,2688.8,2687.7,1.80092474]
[1730926751473,3.0,2688.5,2687.7,0.50775888]
[1730926751634,0.09299729,2688.4,2687.7,0.50775888]
[1730926752272,3.0,2688.1,2687.4,1.29316586]
[1730926752451,3.0,2688.1,2687.4,0.51819594]
[1730926752773,3.796,2688.5,2687.5,0.56933376]
[1730926753068,3.796,2688.5,2687.6,0.51819594]
[1730926753269,3.796,2688.5,2687.7,0.50775888]
[1730926753671,0.796,2688.9,2687.7,1.02595482]
[1730926753836,0.09297443,2688.8,2687.8,1.29316586]
[1730926754039,1.36134485,2688.9,2687.9,1.2827288]
[1730926754261,0.796,2689.7,2688.0,1.29316586]
[1730926754464,0.796,2689.7,2688.4,0.77496992]
[1730926754688,0.796,2689.7,2688.5,0.77496992]
[1730926754689,0.09295614,2689.6,2688.5,0.77496992]
[1730926754985,0.88895614,2689.7,2688.5,1.80092474]
[1730926755195,0.88895614,2689.7,2688.6,0.77496992]
[1730926755196,0.09295614,2689.7,2688.6,0.77496992]
[1730926755475,0.09295614,2689.7,2688.6,1.29316586]
[1730926755678,0.88895187,2690.0,2688.7,1.35461486]
[1730926755833,0.88895187,2690.0,2688.7,1.80092474]
[1730926756033,0.88895187,2690.0,2688.9,0.77496992]
[1730926756240,0.09295187,2690.0,2689.0,0.06143844]
[1730926756439,0.09294267,2690.2,2689.0,1.11555677]
[1730926756689,0.09294263,2690.3,2689.0,1.89052669]
[1730926756983,0.8127,2690.6,2689.3,0.77496992]
[1730926757275,0.09293055,2690.9,2689.5,0.77496992]
[1730926757479,0.09293055,2690.9,2689.6,1.05411833]
[1730926757718,0.8127,2691.1,2689.7,0.06134796]
[1730926757864,0.09290842,2691.0,2689.8,1.05411833]
[1730926758068,4.95035691,2691.0,2689.8,0.54635945]
[1730926758267,0.57630569,2690.9,2689.9,0.06137382]
[1730926758511,0.09291669,2690.8,2689.8,1.05411833]
[1730926758710,0.09291669,2690.9,2689.9,0.54635945]
[1730926759004,0.09291669,2690.9,2689.9,1.05411833]
[1730926759593,0.8127,2691.1,2690.0,0.60772533]
[1730926759773,0.09291285,2691.0,2690.0,0.54635945]
[1730926760014,0.09291285,2691.0,2690.1,0.06136357]
[1730926760165,0.09291285,2691.0,2690.0,0.54635945]
[1730926760366,3.0,2690.7,2689.6,1.05411833]
[1730926760615,0.0929278,2690.6,2689.6,1.05411833]
[1730926761116,0.09292787,2691.0,2689.6,1.05411833]
[1730926761325,0.97023551,2691.0,2689.6,1.82908825]
[1730926761463,3.0,2690.7,2689.6,1.05411833]
[1730926761715,0.09292236,2690.6,2689.6,1.05411833]
[1730926761872,3.09292243,2690.7,2689.6,1.05411833]
[1730926762666,3.0,2690.3,2689.7,0.06138558]
[1730926762874,3.0,2690.7,2689.8,0.54635945]
[1730926763111,0.09292672,2690.6,2689.8,0.54635945]
[1730926763313,0.8127,2691.1,2689.8,1.05411833]
[1730926763468,0.09291332,2691.0,2689.9,0.50775888]
[1730926763667,0.09291332,2691.0,2690.0,0.54635945]
[1730926764107,3.0,2690.8,2690.0,0.54635945]
[1730926764282,3.09291621,2690.8,2690.0,0.54635945]
[1730926764488,0.90560932,2691.1,2690.1,0.50775888]
[1730926764799,4.85744849,2691.3,2690.2,0.54635945]
[1730926764800,0.09290932,2691.2,2690.2,0.54635945]
[1730926764972,0.09290932,2691.2,2690.2,1.05411833]
[1730926765178,0.09290932,2691.2,2690.3,0.50775888]
[1730926765473,0.01,2691.8,2690.3,0.50775888]
[1730926765474,0.7608,2692.4,2690.5,0.55]
[1730926765703,0.09287794,2692.3,2690.7,0.56]
[1730926765897,0.09287794,2692.3,2690.9,0.55]
[1730926766128,0.09287794,2692.3,2691.0,1.08544711]
[1730926766425,0.7608,2692.4,2691.0,1.08544711]
[1730926766719,0.0928635,2692.3,2691.0,1.08544711]
[1730926767510,0.9092631,2693.3,2691.4,0.01]
[1730926767692,0.9092631,2693.3,2691.6,0.55]
[1730926767896,0.57667116,2693.2,2691.7,1.08544711]
[1730926768100,0.09284286,2693.1,2691.7,1.08544711]
[1730926768423,0.01,2693.6,2691.7,1.08544711]
[1730926768424,0.7716,2693.7,2692.2,0.01]
[1730926768623,0.7716,2693.7,2692.4,0.55]
[1730926768911,0.7716,2693.7,2692.5,1.08544711]
[1730926769115,0.38570971,2694.1,2692.6,0.06111824]
[1730926769116,0.47852376,2694.1,2692.6,0.06111824]
[1730926769313,0.09281405,2694.1,2692.8,0.01]
[1730926769522,0.09280656,2694.5,2692.9,1.08544711]
[1730926769674,0.09280656,2694.5,2693.3,0.01]
[1730926769872,0.1289164,2694.6,2693.5,0.01]
[1730926770185,0.1289164,2694.6,2693.0,1.08908766]
[1730926770522,0.1289164,2694.6,2693.1,0.59235654]
[1730926770880,4.85744849,2694.5,2693.1,0.59235654]
[1730926771092,4.85744849,2694.5,2692.4,10.01]
[1730926771093,4.85744849,2694.1,2692.4,10.01]
[1730926771293,0.09280611,2694.0,2693.0,0.59235654]
[1730926771506,1.29183649,2694.4,2693.0,0.59235654]
[1730926771507,4.85744849,2694.1,2693.0,0.59235654]
[1730926771818,3.09280955,2694.0,2693.0,0.59235654]
[1730926772222,3.09280955,2694.0,2693.1,0.06112661]
[1730926772435,0.09281477,2694.3,2693.2,0.59235654]
[1730926772725,0.09281477,2694.3,2693.3,0.60017352]
[1730926772881,0.09281477,2694.3,2693.4,0.59235654]
[1730926773517,0.1289164,2694.6,2693.5,0.60018965]
[1730926773718,4.95023665,2694.5,2693.6,0.59235654]
[1730926773924,0.50891531,2694.4,2693.6,0.59235654]
[1730926774088,0.09279467,2694.3,2692.5,0.01]
[1730926774290,0.49502432,2694.3,2692.8,1.05977754]
[1730926774502,4.85744849,2694.1,2692.8,0.55485654]
[1730926774717,4.85744849,2694.1,2692.8,1.05977754]
[1730926775016,4.85744849,2694.5,2692.9,0.504921]
[1730926775316,0.0927935,2694.4,2693.0,0.55485654]
[1730926775526,0.60071002,2694.4,2693.0,0.55485654]
[1730926775727,0.0927935,2694.4,2693.0,1.05977754]
[1730926776023,0.1289164,2694.6,2693.2,0.55]
[1730926776391,4.85744849,2694.5,2693.3,1.05977754]
[1730926776551,0.09278446,2694.4,2693.3,0.55485654]
[1730926776773,4.85744849,2693.6,2692.9,0.504921]
[1730926777038,4.85744849,2693.1,2690.9,0.01]
[1730926777243,0.49502294,2694.5,2690.3,5.77496992]
[1730926777244,3.0,2692.4,2690.6,0.01]
[1730926777398,4.85744849,2692.1,2691.0,0.55485654]
[1730926777710,0.09287623,2692.0,2691.1,0.504921]
[1730926778049,0.09287629,2692.3,2691.2,0.55485654]
[1730926778338,0.09287629,2692.3,2691.3,0.504921]
[1730926778539,0.09287629,2692.3,2691.4,0.55485654]
[1730926778697,4.85744849,2692.1,2691.4,0.55485654]
[1730926778897,3.0,2692.4,2691.5,0.504921]
[1730926779112,4.85744849,2692.9,2691.6,0.6161119]
[1730926779311,4.85744849,2692.9,2691.6,1.05977754]
[1730926779312,0.0928475,2692.8,2691.6,1.05977754]
[1730926779544,0.0928475,2692.8,2691.6,0.55485654]
[1730926779732,4.85744849,2692.5,2691.6,0.55485654]
[1730926779910,0.09286389,2692.4,2691.6,0.55485654]
[1730926780524,4.85744849,2692.1,2691.3,0.55485654]
[1730926780836,3.09287356,2692.0,2691.4,0.55485654]
[1730926781025,3.09287356,2692.0,2690.8,0.55485654]
[1730926781352,4.85744849,2691.3,2690.8,0.55485654]
[1730926781548,4.85744849,2691.3,2690.6,0.55485654]
[1730926781549,3.09290273,2691.2,2690.6,0.55485654]
[1730926781731,3.09290273,2691.2,2690.3,1.02738054]
[1730926781935,3.09290273,2691.2,2690.4,0.55485654]
[1730926782257,3.09290273,2691.2,2690.5,0.53386335]
[1730926782466,3.09290273,2691.2,2690.6,0.55485654]
[1730926782623,3.09290273,2691.2,2690.1,0.55485654]
[1730926783121,3.0,2690.8,2690.4,0.0376]
[1730926783318,0.8165,2691.3,2690.4,0.0376]
[1730926783319,7.85744849,2690.5,2690.4,0.0376]
[1730926783956,7.85744849,2690.5,2689.5,0.55485654]
[1730926783957,8.68694849,2690.5,2689.5,0.55485654]
[1730926784218,4.85744849,2690.0,2689.5,0.55485654]
[1730926784452,3.09294605,2690.3,2689.4,0.55485654]
[1730926784847,4.85744849,2690.4,2689.5,0.53395615]
[1730926784848,0.09294485,2690.4,2689.5,0.53395615]
[1730926785020,0.09293242,2690.5,2689.6,0.55485654]
[1730926785220,0.09293242,2690.5,2689.7,0.06140233]
[1730926785453,0.09293242,2690.5,2689.7,0.61625887]
[1730926785964,0.09293242,2690.5,2689.7,0.06140233]
[1730926786161,0.09293258,2690.6,2689.7,1.02738054]
[1730926786369,3.0,2690.7,2689.8,0.06138637]
[1730926786857,3.0,2690.7,2689.0,0.01]
[1730926786858,0.8171,2691.3,2689.3,0.472524]
[1730926787046,0.8171,2691.3,2689.9,0.55485654]
[1730926787047,3.10291171,2691.2,2689.9,0.55485654]
[1730926787358,3.0,2690.8,2689.9,0.55485654]
[1730926787568,3.0929152,2690.8,2690.0,0.06136101]
[1730926787774,3.0,2690.8,2690.0,0.06136101]
[1730926787943,3.0929152,2690.8,2690.0,0.61621774]
[1730926788654,4.85744849,2690.5,2689.0,10.0]
[1730926788885,3.09293489,2690.4,2689.4,0.55485654]
[1730926789041,4.85744849,2690.1,2689.4,0.55485654]
[1730926789236,3.09294167,2690.0,2689.0,11.02738054]
[1730926789453,3.09294167,2690.0,2689.1,0.55485654]
[1730926789675,4.85744849,2689.7,2689.1,1.02738054]
[1730926789998,3.0,2690.0,2689.1,1.02738054]
[1730926790280,4.85744849,2689.7,2689.1,0.55485654]
[1730926790481,3.09295568,2689.6,2688.8,0.55485654]
[1730926790647,3.09295568,2689.6,2688.6,0.472524]
[1730926790648,4.85744849,2689.3,2688.6,0.472524]
[1730926790842,4.85744849,2688.9,2687.8,10.0]
[1730926791164,0.09297718,2689.5,2688.0,0.55485654]
[1730926791415,0.09297718,2689.5,2687.3,0.06426795]
[1730926791416,4.85744849,2688.7,2687.3,0.06426795]
[1730926791540,0.09299245,2688.6,2687.9,0.55485654]
[1730926791745,4.85744849,2688.7,2688.0,0.0615464]
[1730926792179,3.7822,2688.9,2687.3,0.06426795]
[1730926792180,4.8600752,2688.2,2687.3,0.06426795]
[1730926792479,4.8600752,2688.2,2686.7,0.01]
[1730926792480,4.8600752,2687.8,2687.5,0.55485654]
[1730926792785,3.0,2688.1,2687.0,0.55485654]
[1730926792993,3.09301374,2688.1,2687.5,0.44220375]
[1730926793197,3.09301374,2688.1,2687.5,0.99706029]
[1730926793482,3.0,2687.7,2686.9,0.55485654]
[1730926793686,0.09302451,2687.6,2687.0,0.44220375]
[1730926793841,4.8600752,2687.4,2686.6,0.57112015]
[1730926794044,0.09303559,2687.3,2686.7,0.99706029]
[1730926794393,0.09303559,2687.3,2686.8,0.06164931]
[1730926794394,3.09303533,2687.3,2686.8,0.06164931]
[1730926794546,0.09303838,2687.2,2686.7,0.55485654]
[1730926794977,3.09304135,2687.3,2686.7,0.55485654]
[1730926796008,3.0,2687.7,2686.8,0.0616724]
[1730926796198,3.0,2687.7,2686.8,0.55485654]
[1730926796359,0.0930242,2687.6,2686.9,0.55485654]
[1730926796564,0.0930242,2687.6,2686.6,0.1289164]
[1730926796790,3.09302428,2687.7,2686.7,0.55485654]
[1730926797338,3.09302428,2687.7,2686.8,0.06162801]
[1730926797461,3.09302428,2687.7,2686.9,0.55485654]
[1730926797462,0.09302428,2687.7,2686.9,0.55485654]
[1730926797662,0.09302644,2687.9,2686.9,0.55485654]
[1730926798512,0.88762176,2688.0,2687.0,0.06161673]
[1730926798863,0.88762176,2688.0,2687.1,0.55485654]
[1730926798864,0.09302176,2688.0,2687.1,0.55485654]
[1730926799432,4.8600752,2687.8,2686.6,0.1289164]
[1730926799706,0.09303218,2687.7,2686.7,0.55485654]
[1730926799908,0.8083,2688.4,2686.7,1.05870205]
[1730926799909,0.09303218,2688.0,2686.7,1.05870205]
[1730926800107,3.0,2687.7,2686.7,0.99706029]
[1730926800268,4.8600752,2686.8,2686.7,0.55485654]
[1730926800471,4.8600752,2686.8,2686.6,0.1289164]
[1730926800697,0.09305531,2687.5,2686.6,0.1289164]
[1730926800913,0.7983,2688.0,2686.7,1.01665171]
[1730926801112,0.01,2688.6,2686.7,1.01665171]
[1730926801113,0.38482199,2688.2,2686.9,0.01]